fUST/lending_fUST_20250719
["ID","MTS","AMOUNT","RATE_DAILY","PERIOD"]
[373222868,1752912648327,-625.0,0.0001825,2]
[373222869,1752912648337,-500.0,0.0001825,2]
[373222870,1752912648347,-1500.0,0.0001826,2]
[373222871,1752912648357,-1500.0,0.0001826,2]
[373222872,1752912648367,-5984.05032579,0.00018279,2]
[373222873,1752912648377,-1000.0,0.00018293,2]
[373222874,1752912648387,-151.0,0.000183,2]
[373222875,1752912648398,-25000.0,0.00018352,2]
[373222876,1752912648408,-151.0,0.000184,2]
[373222877,1752912648417,-1500.0,0.00018474,2]
[373222878,1752912648427,-1500.0,0.0001848,2]
[373222879,1752912648438,-1500.0,0.0001848,2]
[373222880,1752912648448,-524.87,0.00018511,2]
[373222881,1752912648459,-460.0,0.00018511,2]
[373222882,1752912648469,-1784.08,0.00018511,2]
[373222883,1752912648482,-1128.74,0.00018511,2]
[373222884,1752912648492,-460.0,0.00018511,2]
[373222885,1752912648502,-1218.46,0.00018511,2]
[373222886,1752912648512,-460.0,0.00018511,2]
[373222887,1752912648522,-463.18,0.00018511,2]
[373222888,1752912648532,-460.0,0.00018511,2]
[373222889,1752912648542,-542.18,0.00018511,2]
[373222890,1752912648552,-460.0,0.00018511,2]
[373222891,1752912648562,-460.0,0.00018511,2]
[373222892,1752912648575,-1453.91,0.00018511,2]
[373222893,1752912648586,-460.0,0.00018511,2]
[373222894,1752912648595,-3990.44,0.00018511,2]
[373222895,1752912648606,-460.0,0.00018511,2]
[373222896,1752912648616,-743.31,0.00018511,2]
[373222897,1752912648626,-460.0,0.00018511,2]
[373222898,1752912648636,-151.0,0.00018511,2]
[373222899,1752912648647,-1812.36,0.00018511,2]
[373222900,1752912648657,-2422.91,0.00018511,2]
[373222901,1752912648667,-2142.1,0.00018511,2]
[373222902,1752912648677,-460.0,0.00018512,2]
[373222903,1752912648687,-548.07,0.00018512,2]
[373222904,1752912648702,-460.0,0.00018512,2]
[373222905,1752912648713,-460.0,0.00018512,2]
[373222906,1752912648724,-565.34227026,0.00018512,2]
[373222907,1752912648734,-460.0,0.00018512,2]
[373222908,1752912648745,-460.0,0.00018512,2]
[373222909,1752912648755,-460.0,0.00018512,2]
[373222910,1752912648765,-460.0,0.00018512,2]
[373222911,1752912648777,-460.0,0.00018512,2]
[373222912,1752912648787,-159.31,0.00018512,2]
[373222913,1752912648797,-769.57,0.00018512,2]
[373222914,1752912648807,-460.0,0.00018512,2]
[373222915,1752912648817,-460.0,0.00018512,2]
[373222916,1752912648827,-575.82,0.00018512,2]
[373222917,1752912648838,-460.0,0.00018512,2]
[373222918,1752912648848,-460.0,0.00018512,2]
[373222919,1752912648858,-1093.29,0.00018512,2]
[373222920,1752912648869,-460.0,0.00018512,2]
[373222921,1752912648879,-460.0,0.00018512,2]
[373222922,1752912648889,-460.0,0.00018512,2]
[373222923,1752912648899,-460.0,0.00018512,2]
[373222924,1752912648909,-1411.72,0.00018512,2]
[373222925,1752912648919,-460.0,0.00018512,2]
[373222926,1752912648929,-905.72,0.00018512,2]
[373222927,1752912648939,-460.0,0.00018512,2]
[373222928,1752912648950,-460.0,0.00018512,2]
[373222929,1752912648962,-460.0,0.00018512,2]
[373222930,1752912648972,-460.0,0.00018512,2]
[373222931,1752912648982,-151.0,0.00018512,2]
[373222932,1752912648992,-743.82,0.00018512,2]
[373222933,1752912649003,-954.84,0.00018512,2]
[373222934,1752912649013,-152.405434,0.00018512,2]
[373222935,1752912649023,-151.0,0.00018512,2]
[373222936,1752912649033,-550.48,0.00018512,2]
[373222937,1752912649045,-460.0,0.00018512,2]
[373222938,1752912649055,-194.1,0.00018512,2]
[373222939,1752912649065,-460.0,0.00018513,2]
[373222940,1752912649075,-277.86689173,0.00018514,2]
[373222941,1752912649085,-151.0,0.00018514,2]
[373222942,1752912649094,-151.0,0.00018514,2]
[373222943,1752912649105,-7005.26809813,0.00018515,2]
[373222944,1752912649125,-1500.0,0.00018517,2]
[373222945,1752912649138,-625.0,0.00018524,2]
[373222946,1752912649150,-500.0,0.00018524,2]
[373222947,1752912649161,-5984.05032579,0.00018555,2]
[373222948,1752912649172,-360.0,0.00018579,2]
[373222949,1752912649183,-151.0,0.000186,2]
[373222950,1752912649195,-151.536565,0.00018624,2]
[373222951,1752912649207,-151.0,0.00018624,2]
[373222952,1752912649217,-151.0,0.00018624,2]
[373222953,1752912649228,-151.0,0.00018624,2]
[373222954,1752912649238,-301.290918,0.00018624,2]
[373222955,1752912649249,-151.0,0.00018624,2]
[373222956,1752912649259,-151.0,0.00018624,2]
[373222957,1752912649269,-1501.87284,0.00018624,2]
[373222958,1752912649279,-1501.87284,0.00018624,2]
[373222959,1752912649289,-208.469079,0.00018624,2]
[373222960,1752912649300,-208.469079,0.00018624,2]
[373222961,1752912649311,-217.471641,0.00018624,2]
[373222962,1752912649321,-217.471641,0.00018624,2]
[373222963,1752912649331,-7005.26809813,0.00018661,2]
[373222964,1752912649342,-524.87,0.00018785,2]
[373222965,1752912649351,-460.0,0.00018785,2]
[373222966,1752912649361,-1784.08,0.00018785,2]
[373222967,1752912649371,-1128.74,0.00018785,2]
[373222968,1752912649382,-460.0,0.00018785,2]
[373222969,1752912649392,-1218.46,0.00018785,2]
[373222970,1752912649401,-460.0,0.00018785,2]
[373222971,1752912649413,-463.18,0.00018785,2]
[373222972,1752912649423,-460.0,0.00018785,2]
[373222973,1752912649434,-333.52539461,0.00018785,2]
[373222974,1752912649790,-208.65460539,0.00018785,2]
[373222975,1752912649801,-460.0,0.00018785,2]
[373222976,1752912649811,-460.0,0.00018785,2]
[373222977,1752912649820,-1185.29738261,0.00018785,2]
[373222978,1752912649833,-268.61261739,0.00018785,2]
[373222979,1752912649843,-377.83860082,0.00018785,2]
[373222980,1752912649855,-82.16139918,0.00018785,2]
[373222981,1752912649865,-974.11316715,0.00018785,2]
[373222982,1752912649878,-667.58803514,0.00018785,2]
[373222983,1752912649891,-2348.73879771,0.00018785,2]
[373222984,1752912649901,-460.0,0.00018785,2]
[373222985,1752912649910,-743.31,0.00018785,2]
[373222986,1752912649919,-460.0,0.00018785,2]
[373222987,1752912649929,-1812.36,0.00018785,2]
[373222988,1752912649939,-2422.91,0.00018785,2]
[373222989,1752912649948,-2142.1,0.00018785,2]
[373222990,1752912649959,-460.0,0.00018786,2]
[373222991,1752912649968,-460.0,0.00018786,2]
[373222992,1752912649978,-460.0,0.00018786,2]
[373222993,1752912649987,-586.56849972,0.00018786,2]
[373222994,1752912649998,-460.0,0.00018786,2]
[373222995,1752912650008,-460.0,0.00018786,2]
[373222996,1752912650018,-460.0,0.00018786,2]
[373222997,1752912650028,-153.378373,0.00018786,2]
[373222998,1752912650037,-151.0,0.00018786,2]
[373222999,1752912650047,-460.0,0.00018786,2]
[373223000,1752912650056,-151.0,0.00018786,2]
[373223001,1752912650066,-769.57,0.00018786,2]
[373223002,1752912650075,-460.0,0.00018786,2]
[373223003,1752912650084,-460.0,0.00018786,2]
[373223004,1752912650093,-468.864438,0.00018786,2]
[373223005,1752912650103,-575.82,0.00018786,2]
[373223006,1752912650112,-339.87989159,0.00018786,2]
[373223007,1752912650179,-460.0,0.00016592,2]
[373223008,1752912650189,-128.98454641,0.00018786,2]
[373223009,1752912650199,-309.301731,0.00018786,2]
[373223010,1752912650209,-460.0,0.00018786,2]
[373223011,1752912650218,-309.301731,0.00018786,2]
[373223012,1752912650228,-460.0,0.00018786,2]
[373223013,1752912650237,-152.87037,0.00018786,2]
[373223014,1752912650247,-941.96683009,0.00018786,2]
[373223015,1752912650288,365.812366,0.00013699,2]
[373223016,1752912650606,-460.0,0.00016866,2]
[373223017,1752912650615,-460.0,0.0001714,2]
[373223018,1752912650625,-460.0,0.00017414,2]
[373223019,1752912650635,-151.0,0.00018511,2]
[373223020,1752912650645,-137.97019674,0.00018786,2]
[373223021,1752912650657,-13.35297317,0.00018786,2]
[373223022,1752912650666,-460.0,0.00018786,2]
[373223023,1752912650676,-136.1746831,0.00018786,2]
[373223024,1752912650711,-323.8253169,0.00018786,2]
[373223025,1752912650721,-460.0,0.00018786,2]
[373223026,1752912650731,-460.0,0.00018786,2]
[373223027,1752912650741,-1411.72,0.00018786,2]
[373223028,1752912650751,-460.0,0.00018786,2]
[373223029,1752912650760,-905.72,0.00018786,2]
[373223030,1752912650771,-460.0,0.00018786,2]
[373223031,1752912650780,-460.0,0.00018786,2]
[373223032,1752912650794,-460.0,0.00018786,2]
[373223033,1752912650806,-460.0,0.00018786,2]
[373223034,1752912650816,-743.82,0.00018786,2]
[373223035,1752912650825,-954.84,0.00018786,2]
[373223036,1752912650835,-550.48,0.00018786,2]
[373223037,1752912650845,-460.0,0.00018786,2]
[373223038,1752912650855,-460.0,0.00018787,2]
[373223039,1752912650865,-625.0,0.00018798,2]
[373223040,1752912650876,-500.0,0.00018798,2]
[373223041,1752912650885,-151.0,0.000188,2]
[373223042,1752912650894,-2000.0,0.00018808,2]
[373223043,1752912650904,-500.0,0.00018808,2]
[373223044,1752912650913,-151.0,0.00018816,2]
[373223045,1752912650922,-258.7605,0.00018816,2]
[373223046,1752912650932,-151.0,0.00018816,2]
[373223047,1752912650942,-258.7605,0.00018816,2]
[373223048,1752912650951,-151.0,0.00018816,2]
[373223049,1752912650963,-151.0,0.00018816,2]
[373223050,1752912650973,-5984.05032579,0.00018831,2]
[373223051,1752912650982,-151.0,0.000189,2]
[373223052,1752912650992,-302.96970909,0.000189,2]
[373223053,1752912651002,-302.96970909,0.000189,2]
[373223054,1752912651012,-1599.66834911,0.000189,2]
[373223055,1752912651022,-151.490521,0.00019004,2]
[373223056,1752912651031,-260.30672001,0.00019008,2]
[373223057,1752912651041,-1000.0,0.00019022,2]
[373223058,1752912651050,-2000.0,0.00019028,2]
[373223059,1752912651060,-1539.61585686,0.00019028,2]
[373223060,1752912651070,-524.87,0.00019059,2]
[373223061,1752912651080,-460.0,0.00019059,2]
[373223062,1752912651089,-1784.08,0.00019059,2]
[373223063,1752912651099,-1128.74,0.00019059,2]
[373223064,1752912651109,-460.0,0.00019059,2]
[373223065,1752912651119,-1218.46,0.00019059,2]
[373223066,1752912651128,-460.0,0.00019059,2]
[373223067,1752912651138,-463.18,0.00019059,2]
[373223068,1752912651147,-460.0,0.00019059,2]
[373223069,1752912651157,-542.18,0.00019059,2]
[373223070,1752912651166,-460.0,0.00019059,2]
[373223071,1752912651176,-460.0,0.00019059,2]
[373223072,1752912651185,-1453.91,0.00019059,2]
[373223073,1752912651195,-460.0,0.00019059,2]
[373223074,1752912651207,-3990.44,0.00019059,2]
[373223075,1752912651217,-460.0,0.00019059,2]
[373223076,1752912651226,-743.31,0.00019059,2]
[373223077,1752912651236,-460.0,0.00019059,2]
[373223078,1752912651247,-1812.36,0.00019059,2]
[373223079,1752912651257,-2422.91,0.00019059,2]
[373223080,1752912651268,-2142.1,0.00019059,2]
[373223081,1752912651278,-460.0,0.0001906,2]
[373223082,1752912651289,-460.0,0.0001906,2]
[373223083,1752912651300,-250.45631722,0.0001906,2]
[373223084,1752912651311,-460.0,0.0001906,2]
[373223085,1752912651323,-460.0,0.0001906,2]
[373223086,1752912651335,-460.0,0.0001906,2]
[373223087,1752912651344,-460.0,0.0001906,2]
[373223088,1752912651355,-769.57,0.0001906,2]
[373223089,1752912651364,-460.0,0.0001906,2]
[373223090,1752912651375,-460.0,0.0001906,2]
[373223091,1752912651385,-575.82,0.0001906,2]
[373223092,1752912651395,-460.0,0.0001906,2]
[373223093,1752912651405,-460.0,0.0001906,2]
[373223094,1752912651415,-1093.29,0.0001906,2]
[373223095,1752912651425,-460.0,0.0001906,2]
[373223096,1752912651435,-460.0,0.0001906,2]
[373223097,1752912651445,-460.0,0.0001906,2]
[373223098,1752912651456,-589.62053399,0.0001906,2]
[373223099,1752912651466,-1411.72,0.0001906,2]
[373223100,1752912651477,-460.0,0.0001906,2]
[373223101,1752912651487,-905.72,0.0001906,2]
[373223102,1752912651497,-460.0,0.0001906,2]
[373223103,1752912651506,-460.0,0.0001906,2]
[373223104,1752912651516,-460.0,0.0001906,2]
[373223105,1752912651527,-460.0,0.0001906,2]
[373223106,1752912651536,-743.82,0.0001906,2]
[373223107,1752912651546,-954.84,0.0001906,2]
[373223108,1752912651557,-550.48,0.0001906,2]
[373223109,1752912651566,-460.0,0.0001906,2]
[373223110,1752912651577,-190.28,0.00019061,2]
[373223111,1752912651588,-151.0,0.00019061,2]
[373223112,1752912651598,-151.0,0.00019061,2]
[373223113,1752912651608,-151.0,0.00019061,2]
[373223114,1752912651618,-151.0,0.00019061,2]
[373223115,1752912651629,-151.0,0.00019061,2]
[373223116,1752912651639,-467.049052,0.00019061,2]
[373223117,1752912651649,-467.049052,0.00019061,2]
[373223118,1752912651659,-2000.0,0.00019065,2]
[373223119,1752912651670,-625.0,0.00019072,2]
[373223120,1752912651681,-500.0,0.00019072,2]
[373223121,1752912651692,-151.0,0.00019072,2]
[373223122,1752912651704,-151.0,0.00019072,2]
[373223123,1752912651715,-7005.26809813,0.00019084,2]
[373223124,1752912651726,-302.96970909,0.00019089,2]
[373223125,1752912651736,-5984.05032579,0.00019107,2]
[373223126,1752912651747,-460.0,0.00019127,2]
[373223127,1752912651757,-215.0738,0.00019173,2]
[373223128,1752912651767,-500.0,0.00019178,2]
[373223129,1752912651778,-339.34202948,0.00019178,2]
[373223130,1752912651788,-151.0,0.00019178,2]
[373223131,1752912651799,-151.50246238,0.00019178,2]
[373223132,1752912651810,-151.0,0.00019178,2]
[373223133,1752912651820,-151.0,0.00019178,2]
[373223134,1752912651831,-151.0,0.00019178,2]
[373223135,1752912651841,-151.0,0.00019178,2]
[373223136,1752912651852,-269.162217,0.00019178,2]
[373223137,1752912651862,-1501.87284,0.00019178,2]
[373223138,1752912651872,-1501.87284,0.00019178,2]
[373223139,1752912651884,-151.0,0.00019178,2]
[373223140,1752912651894,-208.469079,0.00019178,2]
[373223141,1752912651905,-152.435785,0.00019178,2]
[373223142,1752912651915,-151.0,0.00019178,2]
[373223143,1752912651925,-208.469079,0.00019178,2]
[373223144,1752912651937,-151.0,0.00019178,2]
[373223145,1752912651947,-217.471641,0.00019178,2]
[373223146,1752912651958,-217.471641,0.00019178,2]
[373223147,1752912651967,-666.0,0.00019178,2]
[373223148,1752912651977,-5000.0,0.00019178,2]
[373223149,1752912651987,-5000.0,0.00019178,2]
[373223150,1752912651998,-3042.1131575,0.00019178,2]
[373223151,1752912652009,-546.443181,0.00019178,2]
[373223152,1752912652020,-53988.8746643,0.00019178,2]
[373223153,1752912652030,-151.0,0.000192,2]
[373223154,1752912652040,-151.0,0.000192,2]
[373223155,1752912652050,-302.96970909,0.00019278,2]
[373223156,1752912652060,-413.835,0.00019279,2]
[373223157,1752912652070,-7005.26809813,0.00019302,2]
[373223158,1752912652080,-500.0,0.00019309,2]
[373223159,1752912652091,-304.81458593,0.00019309,2]
[373223160,1752912652101,-1420.29596066,0.00019309,2]
[373223161,1752912652112,-1420.29596066,0.00019309,2]
[373223162,1752912652123,-1420.29596066,0.00019309,2]
[373223163,1752912652133,-1420.29596066,0.00019309,2]
[373223164,1752912652143,-1420.29596066,0.00019309,2]
[373223165,1752912652155,-1420.29596066,0.00019309,2]
[373223166,1752912652166,-1420.29596066,0.00019309,2]
[373223167,1752912652175,-1420.29596066,0.00019309,2]
[373223168,1752912652186,-1420.29596066,0.00019309,2]
[373223169,1752912652197,-151.0,0.00019329,2]
[373223170,1752912652208,-151.0,0.00019329,2]
[373223171,1752912652218,-258.7605,0.00019329,2]
[373223172,1752912652229,-258.7605,0.00019329,2]
[373223173,1752912652240,-151.0,0.00019329,2]
[373223174,1752912652249,-151.0,0.00019329,2]
[373223175,1752912652259,-151.0,0.00019329,2]
[373223176,1752912652269,-151.0,0.00019329,2]
[373223177,1752912652278,-151.0,0.00019329,2]
[373223178,1752912652288,-468.864438,0.00019329,2]
[373223179,1752912652297,-468.864438,0.00019329,2]
[373223180,1752912652308,-309.301731,0.00019329,2]
[373223181,1752912652318,-309.301731,0.00019329,2]
[373223182,1752912652328,-151.862641,0.00019329,2]
[373223183,1752912652338,-151.0,0.00019329,2]
[373223184,1752912652348,-100000.0,0.00019329,2]
[373223185,1752912652357,-524.87,0.00019333,2]
[373223186,1752912652367,-460.0,0.00019333,2]
[373223187,1752912652377,-1784.08,0.00019333,2]
[373223188,1752912652387,-1128.74,0.00019333,2]
[373223189,1752912652397,-460.0,0.00019333,2]
[373223190,1752912652407,-1218.46,0.00019333,2]
[373223191,1752912652417,-463.18,0.00019333,2]
[373223192,1752912652427,-460.0,0.00019333,2]
[373223193,1752912652437,-542.18,0.00019333,2]
[373223194,1752912652447,-460.0,0.00019333,2]
[373223195,1752912652457,-460.0,0.00019333,2]
[373223196,1752912652467,-151.0,0.00019333,2]
[373223197,1752912652479,-1453.91,0.00019333,2]
[373223198,1752912652489,-151.0,0.00019333,2]
[373223199,1752912652499,-460.0,0.00019333,2]
[373223200,1752912652509,-3990.44,0.00019333,2]
[373223201,1752912652519,-460.0,0.00019333,2]
[373223202,1752912652529,-743.31,0.00019333,2]
[373223203,1752912652539,-151.0,0.00019333,2]
[373223204,1752912652549,-1812.36,0.00019333,2]
[373223205,1752912652559,-2422.91,0.00019333,2]
[373223206,1752912652570,-2142.1,0.00019333,2]
[373223207,1752912652580,-460.0,0.00019334,2]
[373223208,1752912652591,-460.0,0.00019334,2]
[373223209,1752912652601,-460.0,0.00019334,2]
[373223210,1752912652611,-460.0,0.00019334,2]
[373223211,1752912652621,-460.0,0.00019334,2]
[373223212,1752912652631,-769.57,0.00019334,2]
[373223213,1752912652641,-460.0,0.00019334,2]
[373223214,1752912652651,-460.0,0.00019334,2]
[373223215,1752912652661,-575.82,0.00019334,2]
[373223216,1752912652671,-460.0,0.00019334,2]
[373223217,1752912652681,-460.0,0.00019334,2]
[373223218,1752912652695,-1093.29,0.00019334,2]
[373223219,1752912652706,-460.0,0.00019334,2]
[373223220,1752912652716,-151.0,0.00019334,2]
[373223221,1752912652726,-251.9089309,0.00019334,2]
[373223222,1752912652737,-159.334252,0.00019334,2]
[373223223,1752912652747,-460.0,0.00019334,2]
[373223224,1752912652756,-151.0,0.00019334,2]
[373223225,1752912652767,-1411.72,0.00019334,2]
[373223226,1752912652778,-460.0,0.00019334,2]
[373223227,1752912652789,-905.72,0.00019334,2]
[373223228,1752912652799,-445.21,0.00019334,2]
[373223229,1752912652809,-151.0,0.00019334,2]
[373223230,1752912652819,-1501.87284,0.00019334,2]
[373223231,1752912652829,-460.0,0.00019334,2]
[373223232,1752912652840,-1501.87284,0.00019334,2]
[373223233,1752912652849,-460.0,0.00019334,2]
[373223234,1752912652859,-208.469079,0.00019334,2]
[373223235,1752912652869,-208.469079,0.00019334,2]
[373223236,1752912652879,-743.82,0.00019334,2]
[373223237,1752912652890,-954.84,0.00019334,2]
[373223238,1752912652900,-550.48,0.00019334,2]
[373223239,1752912652910,-217.471641,0.00019334,2]
[373223240,1752912652919,-460.0,0.00019334,2]
[373223241,1752912652929,-217.471641,0.00019334,2]
[373223242,1752912652939,-151.0,0.00019335,2]
[373223243,1752912652949,-151.0,0.00019335,2]
[373223244,1752912652960,-151.0,0.00019335,2]
[373223245,1752912652969,-151.0,0.00019335,2]
[373223246,1752912652980,-265.863656,0.00019335,2]
[373223247,1752912652990,-151.0,0.00019335,2]
[373223248,1752912653000,-494.690919,0.00019335,2]
[373223249,1752912653010,-494.690919,0.00019335,2]
[373223250,1752912653020,-230.940089,0.00019335,2]
[373223251,1752912653030,-230.940089,0.00019335,2]
[373223252,1752912653040,-151.0,0.00019338,2]
[373223253,1752912653050,-625.0,0.00019346,2]
[373223254,1752912653060,-500.0,0.00019346,2]
[373223255,1752912653070,-1001.08862732,0.00019356,2]
[373223256,1752912653079,-500.0,0.00019373,2]
[373223257,1752912653091,-500.0,0.00019373,2]
[373223258,1752912653100,-500.0,0.00019373,2]
[373223259,1752912653110,-500.0,0.00019373,2]
[373223260,1752912653120,-500.0,0.00019373,2]
[373223261,1752912653130,-500.0,0.00019373,2]
[373223262,1752912653140,-557.68192938,0.00019373,2]
[373223263,1752912653150,-500.0,0.00019373,2]
[373223264,1752912653160,-500.0,0.00019373,2]
[373223265,1752912653169,-505.11833627,0.00019373,2]
[373223266,1752912653179,-151.0,0.00019373,2]
[373223267,1752912653189,-151.0,0.00019373,2]
[373223268,1752912653200,-468.864438,0.00019373,2]
[373223269,1752912653212,-468.864438,0.00019373,2]
[373223270,1752912653222,-309.301731,0.00019373,2]
[373223271,1752912653232,-309.301731,0.00019373,2]
[373223272,1752912653344,-5984.05032579,0.00019383,2]
[373223273,1752912653356,-1000.0,0.00019389,2]
[373223274,1752912653366,-151.0,0.00019452,2]
[373223275,1752912653376,-283.875209,0.00019463,2]
[373223276,1752912653386,-302.87884545,0.00019467,2]
[373223277,1752912653396,-16155.24928988,0.0001956,2]
[373223278,1752912653405,-1505.7834431,0.00019576,2]
[373223279,1752912653415,-429.3901486,0.00019589,2]
[373223280,1752912653425,-429.3901486,0.00019589,2]
[373223281,1752912653434,-429.3901486,0.00019589,2]
[373223282,1752912653444,-429.3901486,0.00019589,2]
[373223283,1752912653453,-429.3901486,0.00019589,2]
[373223284,1752912653466,-429.3901486,0.00019589,2]
[373223285,1752912653475,-429.3901486,0.00019589,2]
[373223286,1752912653486,-429.3901486,0.00019589,2]
[373223287,1752912653496,-429.3901486,0.00019589,2]
[373223288,1752912653505,-429.3901486,0.00019589,2]
[373223289,1752912653516,-429.3901486,0.00019589,2]
[373223290,1752912653526,-429.3901486,0.00019589,2]
[373223291,1752912653536,-429.3901486,0.00019589,2]
[373223292,1752912653546,-429.3901486,0.00019589,2]
[373223293,1752912653555,-429.3901486,0.00019589,2]
[373223294,1752912653566,-429.3901486,0.00019589,2]
[373223295,1752912653575,-429.3901486,0.00019589,2]
[373223296,1752912653585,-151.0,0.000196,2]
[373223297,1752912653595,-151.0,0.000196,2]
[373223298,1752912653605,-7005.26809813,0.00019602,2]
[373223299,1752912653615,-151.0,0.00019604,2]
[373223300,1752912653625,-524.87,0.00019607,2]
[373223301,1752912653634,-460.0,0.00019607,2]
[373223302,1752912653644,-1784.08,0.00019607,2]
[373223303,1752912653653,-1128.74,0.00019607,2]
[373223304,1752912653664,-460.0,0.00019607,2]
[373223305,1752912653674,-1218.46,0.00019607,2]
[373223306,1752912653684,-463.18,0.00019607,2]
[373223307,1752912653697,-460.0,0.00019607,2]
[373223308,1752912653707,-542.18,0.00019607,2]
[373223309,1752912653717,-460.0,0.00019607,2]
[373223310,1752912653727,-460.0,0.00019607,2]
[373223311,1752912653736,-1453.91,0.00019607,2]
[373223312,1752912653746,-460.0,0.00019607,2]
[373223313,1752912653756,-3990.44,0.00019607,2]
[373223314,1752912653767,-460.0,0.00019607,2]
[373223315,1752912653776,-743.31,0.00019607,2]
[373223316,1752912653786,-1812.36,0.00019607,2]
[373223317,1752912653795,-2422.91,0.00019607,2]
[373223318,1752912653805,-2142.1,0.00019607,2]
[373223319,1752912653815,-460.0,0.00019608,2]
[373223320,1752912653825,-460.0,0.00019608,2]
[373223321,1752912653835,-525.89391217,0.00019608,2]
[373223322,1752912653845,-460.0,0.00019608,2]
[373223323,1752912653855,-769.57,0.00019608,2]
[373223324,1752912653864,-460.0,0.00019608,2]
[373223325,1752912653874,-460.0,0.00019608,2]
[373223326,1752912653884,-575.82,0.00019608,2]
[373223327,1752912653904,-460.0,0.00019608,2]
[373223328,1752912653915,-460.0,0.00019608,2]
[373223329,1752912653926,-1093.29,0.00019608,2]
[373223330,1752912653937,-460.0,0.00019608,2]
[373223331,1752912653947,-460.0,0.00019608,2]
[373223332,1752912653958,-1411.72,0.00019608,2]
[373223333,1752912653968,-460.0,0.00019608,2]
[373223334,1752912653979,-905.72,0.00019608,2]
[373223335,1752912653988,-460.0,0.00019608,2]
[373223336,1752912653998,-460.0,0.00019608,2]
[373223337,1752912654008,-743.82,0.00019608,2]
[373223338,1752912654018,-954.84,0.00019608,2]
[373223339,1752912654028,-550.48,0.00019608,2]
[373223340,1752912654038,-460.0,0.00019608,2]
[373223341,1752912654048,-2500.0,0.00019613,2]
[373223342,1752912654058,-625.0,0.0001962,2]
[373223343,1752912654068,-500.0,0.0001962,2]
[373223344,1752912654078,-5984.05032579,0.00019659,2]
[373223345,1752912654088,-560.0,0.00019675,2]
[373223346,1752912654098,-151.28705399,0.00019726,2]
[373223347,1752912654109,-587.0,0.00019809,2]
[373223348,1752912654119,-524.87,0.00019881,2]
[373223349,1752912654130,-460.0,0.00019881,2]
[373223350,1752912654140,-1784.08,0.00019881,2]
[373223351,1752912654149,-1128.74,0.00019881,2]
[373223352,1752912654160,-460.0,0.00019881,2]
[373223353,1752912654171,-1218.46,0.00019881,2]
[373223354,1752912654181,-463.18,0.00019881,2]
[373223355,1752912654192,-460.0,0.00019881,2]
[373223356,1752912654202,-542.18,0.00019881,2]
[373223357,1752912654213,-460.0,0.00019881,2]
[373223358,1752912654223,-460.0,0.00019881,2]
[373223359,1752912654234,-1453.91,0.00019881,2]
[373223360,1752912654244,-460.0,0.00019881,2]
[373223361,1752912654255,-3990.44,0.00019881,2]
[373223362,1752912654265,-460.0,0.00019881,2]
[373223363,1752912654275,-743.31,0.00019881,2]
[373223364,1752912654286,-1812.36,0.00019881,2]
[373223365,1752912654296,-2422.91,0.00019881,2]
[373223366,1752912654306,-2142.1,0.00019881,2]
[373223367,1752912654316,-520.3,0.00019882,2]